bitfinex-derivatives/quotes_ETHF0:USTF0_20240924
["timestamp","ask_amount","ask_price","bid_price","bid_amount"]
[1727203770771,0.74273,2637.8,2637.7,0.3623]
[1727203771363,0.74273,2637.8,2637.7,0.74143]
[1727203771560,0.74273,2637.8,2637.7,0.3623]
[1727203772661,0.37914,2637.7,2637.3,0.7427]
[1727203772866,0.37914,2637.7,2637.6,0.37915]
[1727203773062,2.66,2637.7,2637.0,5.13109775]
[1727203773381,0.37919,2637.4,2637.0,0.3648]
[1727203773566,0.98157212,2637.5,2637.4,0.37918]
[1727203773761,0.37916,2637.5,2637.4,0.37918]
[1727203773964,0.98157212,2637.6,2637.1,0.7889]
[1727203774168,0.37917,2637.5,2637.1,0.7889]
[1727203774774,0.37917,2637.5,2637.3,0.37918]
[1727203775377,0.98157212,2637.6,2637.2,0.3792]
[1727203775578,0.75998,2637.4,2637.2,0.3792]
[1727203775770,0.3808,2637.4,2637.3,0.37919]
[1727203776369,0.3808,2637.4,2637.2,0.3792]
[1727203776570,0.75998,2637.4,2637.2,0.3792]
[1727203776879,0.3792,2637.3,2637.1,1.16811]
[1727203777075,0.75999,2637.4,2637.2,0.3792]
[1727203777675,0.37919,2637.3,2637.2,0.3792]
[1727203777973,0.3808,2637.4,2637.2,0.3792]
[1727203777974,0.75998,2637.4,2637.2,0.3792]
[1727203778170,0.37919,2637.3,2637.2,0.3792]
[1727203779080,0.37919,2637.3,2637.1,0.7889]
[1727203779268,0.37919,2637.3,2637.1,1.16811]
[1727203779467,0.3792,2637.2,2637.1,1.16812]
[1727203779669,0.3808,2637.4,2637.1,1.16812]
[1727203779670,0.3792,2637.3,2637.1,1.16812]
[1727203780172,1.74155212,2637.4,2637.1,0.7889]
[1727203780368,1.36073212,2637.5,2637.1,0.7889]
[1727203780673,0.98157212,2637.6,2637.5,0.37916]
[1727203781075,0.98157212,2637.6,2637.2,3.2078]
[1727203781076,5.15192212,2637.6,2637.2,3.2078]
[1727203781282,0.98157212,2637.6,2637.4,0.37917]
[1727203781572,1.36072212,2637.6,2637.4,0.37917]
[1727203782176,1.36072212,2637.6,2637.2,3.2078]
[1727203782177,0.37915,2637.6,2637.5,0.77336]
[1727203782382,0.98157212,2637.7,2637.6,0.37915]
[1727203782678,0.98157212,2637.7,2637.6,0.3849]
[1727203782882,0.98157212,2637.7,2637.6,0.76405]
[1727203783083,0.37913,2637.8,2637.6,0.3849]
[1727203783283,1.36070212,2637.8,2637.6,0.3849]
[1727203784384,1.36070212,2637.8,2637.6,0.76405]
[1727203785876,0.98157212,2637.8,2637.7,0.37913]
[1727203786075,0.98157212,2638.0,2637.8,0.37911]
[1727203787079,0.98157212,2638.0,2637.6,3.0449]
[1727203787282,1.36067212,2638.0,2637.8,0.37911]
[1727203788174,0.3791,2638.0,2637.8,0.37911]
[1727203789283,1.36067212,2638.0,2637.8,0.37911]
[1727203789489,1.36067212,2638.0,2637.9,0.3791]
[1727203789685,1.36067212,2638.0,2637.8,0.3791]
[1727203790681,1.36067212,2638.0,2637.9,0.3791]
[1727203790985,1.36067212,2638.0,2637.8,0.37911]
[1727203791679,0.3791,2637.9,2637.6,0.3849]
[1727203791875,3.64157212,2638.0,2637.6,0.3849]
[1727203792084,0.37913,2637.7,2637.6,0.3849]
[1727203792287,0.37913,2637.7,2637.5,3.2078]
[1727203792288,0.37915,2637.6,2637.5,3.2078]
[1727203792481,1.36071212,2637.7,2637.5,3.2078]
[1727203792675,1.36070212,2637.7,2637.6,0.37915]
[1727203792875,1.36070212,2637.7,2637.6,0.74795]
[1727203793296,2.2210235,2637.8,2637.6,0.74795]
[1727203793685,0.98183324,2637.7,2637.6,0.74795]
[1727203793890,0.98183324,2637.8,2637.7,0.37913]
[1727203794496,1.8523035,2637.9,2637.7,0.37913]
[1727203795384,1.4731935,2637.8,2637.7,0.76483]
[1727203796192,1.4731935,2637.9,2637.8,0.37912]
[1727203796393,0.75349,2638.0,2637.8,0.76362]
[1727203796394,2.72079368,2638.0,2637.8,0.76362]
[1727203796692,1.4747247,2637.9,2637.8,0.76362]
[1727203800486,0.3791,2637.9,2637.8,0.3845]
[1727203800687,3.7912,2637.9,2637.7,0.3857]
[1727203800887,1.4745111,2637.8,2637.7,0.76483]
[1727203801192,1.4745111,2637.9,2637.8,0.37912]
[1727203801700,1.4745111,2637.9,2637.6,2.10393775]
[1727203801897,0.98313199,2637.7,2637.6,1.50264]
[1727203802094,2.2162411,2637.8,2637.7,0.37913]
[1727203803097,1.4745111,2637.8,2637.7,0.37913]
[1727203803296,1.96730368,2637.9,2637.8,0.37912]
[1727203805204,1.96730368,2638.0,2637.8,5.11812]
[1727203805496,1.47513866,2638.0,2637.9,0.3791]
[1727203805708,1.47513866,2638.0,2637.8,3.2078]
[1727203805709,1.47496192,2638.0,2637.8,3.2078]
[1727203805894,1.47496192,2638.0,2637.9,0.3791]
[1727203806293,1.85406192,2638.0,2637.8,3.58691]
[1727203806496,1.47496192,2637.9,2637.8,3.58691]
[1727203806697,1.87086192,2638.0,2637.9,0.3791]
[1727203806895,1.87086192,2638.0,2637.8,3.2078]
[1727203806896,1.87086192,2638.0,2637.8,3.58691]
[1727203807105,1.47496192,2637.9,2637.8,3.58691]
[1727203807397,1.87086192,2638.0,2637.8,3.2078]
[1727203807601,2.72760368,2638.0,2637.6,1.1235]
[1727203807800,2.34641368,2637.9,2637.7,0.37913]
[1727203807999,1.96730368,2637.9,2637.7,0.37913]
[1727203808190,0.37912,2637.8,2637.6,1.50264]
[1727203808399,2.34641368,2637.9,2637.7,0.37913]
[1727203808609,1.96730368,2637.8,2637.6,1.1235]
[1727203808800,0.37913,2637.7,2637.6,0.3688]
[1727203809003,0.37913,2637.7,2637.6,0.74795]
[1727203809202,0.37913,2637.7,2637.6,0.3688]
[1727203809399,2.34643368,2637.8,2637.6,0.74794]
[1727203809901,1.96730368,2637.9,2637.8,0.37912]
[1727203810202,0.7603,2638.0,2637.7,0.3623]
[1727203810407,0.98365164,2637.8,2637.7,0.74143]
[1727203811303,2.23582695,2638.0,2637.8,0.37912]
[1727203811304,0.98365164,2637.9,2637.8,0.37912]
[1727203812297,0.98365164,2637.9,2637.8,4.17032]
[1727203813408,0.98365164,2638.1,2637.8,5.16341775]
[1727203813708,0.98365164,2638.1,2638.0,0.37909]
[1727203814215,0.98365164,2638.1,2638.0,0.75059]
[1727203815308,0.98365164,2638.1,2638.0,4.54099]
[1727203815907,0.98365164,2638.1,2638.0,0.75059]
[1727203816310,0.98365164,2638.2,2638.1,0.37907]
[1727203816498,0.98365164,2638.2,2638.1,0.76267]
[1727203818309,1.47552695,2638.2,2638.1,0.76267]
[1727203820813,0.3798,2638.3,2638.1,0.76267]
[1727203820814,0.98284052,2638.3,2638.2,0.37906]
[1727203821115,0.98284052,2638.3,2638.2,3.58686]
[1727203821512,1.85382695,2638.4,2638.3,0.37905]
[1727203824218,0.3783,2638.4,2638.2,3.2078]
[1727203824412,1.47430015,2638.3,2638.2,3.58686]
[1727203824612,2.24960015,2638.3,2638.2,3.58686]
[1727203825323,0.7753,2638.3,2638.2,3.58686]
[1727203825507,1.7583588,2638.3,2638.2,3.58686]
[1727203825712,1.3596588,2638.3,2638.2,3.58686]
[1727203826218,0.3766,2638.3,2638.2,3.58686]
[1727203827812,1.47430015,2638.5,2638.4,0.37903]
[1727203828622,1.47430015,2638.6,2638.4,1.15753]
[1727203828821,1.47430015,2638.6,2638.5,0.37902]
[1727203830633,1.47430015,2638.7,2638.6,0.379]
[1727203830831,1.47430015,2638.7,2638.6,3.039]
[1727203831135,1.47430015,2638.8,2638.7,0.37899]
[1727203831323,1.47430015,2638.8,2638.5,3.2078]
[1727203831623,1.86366077,2638.7,2638.5,3.58681]
[1727203831819,0.98305812,2638.6,2638.5,3.58681]
[1727203832017,0.98305812,2638.7,2638.6,0.379]
[1727203832232,2.4591296,2639.2,2639.0,0.37895]
[1727203832233,0.98305812,2639.1,2639.0,0.37895]
[1727203832431,0.98305812,2639.1,2639.0,3.58675]
[1727203832621,1.47486077,2639.2,2639.1,0.37893]
[1727203832622,0.98305812,2639.2,2639.1,0.37893]
[1727203833325,1.47486077,2639.2,2639.1,0.37893]
[1727203833720,1.47347575,2639.3,2639.0,4.8275]
[1727203833922,1.96730368,2639.4,2639.3,0.3789]
[1727203834126,1.1552,2639.5,2639.2,1.60891]
[1727203834127,3.11258368,2639.5,2639.2,1.60891]
[1727203834334,1.96730368,2639.3,2639.1,0.37892]
[1727203834529,1.96730368,2639.3,2639.0,0.76864]
[1727203834530,0.37891,2639.3,2639.0,0.76864]
[1727203834737,1.96730368,2639.3,2639.1,0.37893]
[1727203834925,1.47296328,2639.2,2639.1,0.37893]
[1727203836931,0.98171435,2639.0,2638.8,0.37897]
[1727203838637,1.36066435,2639.0,2638.7,3.95708]
[1727203839136,0.98171435,2638.9,2638.7,3.2078]
[1727203839433,1.47296328,2638.9,2638.5,2.66]
[1727203839631,1.47296328,2638.9,2638.7,0.37898]
[1727203839632,0.98155803,2638.8,2638.7,0.37898]
[1727203839835,0.98155803,2638.8,2638.7,3.03898]
[1727203840033,0.98155803,2639.0,2638.9,0.37896]
[1727203840238,0.98155803,2639.0,2638.9,3.03896]
[1727203840532,2.34621368,2639.3,2639.0,0.37895]
[1727203840533,0.98155803,2639.2,2639.0,0.37895]
[1727203841634,0.98155803,2639.2,2639.1,0.37893]
[1727203841831,0.98155803,2639.3,2639.1,0.37893]
[1727203842033,0.98155803,2639.2,2639.1,0.37893]
[1727203842241,0.98155803,2639.3,2639.1,0.37893]
[1727203842629,0.98155803,2639.3,2639.1,3.03893]
[1727203842830,0.98155803,2639.3,2639.2,0.765]
[1727203844639,0.98155803,2639.3,2639.2,3.80392]
[1727203844841,1.96730368,2639.6,2639.3,0.37889]
[1727203844842,1.36041803,2639.6,2639.3,0.37889]
[1727203845140,0.37886,2639.6,2639.3,0.37889]
[1727203845340,2.09055803,2639.7,2639.2,3.80391]
[1727203845341,0.37888,2639.5,2639.2,3.80391]
[1727203845638,2.46940803,2639.7,2639.4,3.03888]
[1727203845834,1.48785,2639.7,2639.4,3.03888]
[1727203846342,2.46940803,2639.7,2639.4,3.03888]
[1727203846532,1.48785,2639.7,2639.4,3.03888]
[1727203847337,0.98155803,2639.8,2639.6,3.03885]
[1727203847542,1.36038803,2639.9,2639.7,0.3949]
[1727203848241,0.98155803,2639.9,2639.7,0.7885]
[1727203848538,0.3707,2640.0,2639.8,3.40713]
[1727203849134,0.74951,2640.0,2639.8,0.3683]
[1727203850434,0.3707,2640.0,2639.8,0.3683]
[1727203850635,0.3707,2640.0,2639.7,1.16733]
[1727203850636,0.3707,2640.0,2639.7,0.7885]
[1727203850833,1.31773,2640.0,2639.4,3.0502]
[1727203851035,0.37885,2639.7,2639.5,0.37887]
[1727203851238,0.373,2639.9,2639.5,0.37887]
[1727203851546,0.37885,2639.7,2639.5,0.37887]
[1727203852036,0.37885,2639.7,2639.4,1.1484]
[1727203852239,0.37885,2639.7,2639.5,0.37887]
[1727203854833,0.3906,2639.8,2639.4,1.52728]
[1727203854834,0.37887,2639.6,2639.4,1.52728]
[1727203855035,0.37885,2639.7,2639.5,0.37887]
[1727203855435,0.37886,2639.6,2639.4,1.1484]
[1727203855640,0.98155803,2639.5,2639.4,1.52728]
[1727203857146,1.36042803,2639.5,2639.4,1.1484]
[1727203857646,0.98155803,2639.5,2639.4,1.52729]
[1727203857841,1.36042803,2639.5,2639.4,1.1484]
[1727203858036,0.98155803,2639.5,2639.2,0.37891]
[1727203858234,1.36045803,2639.4,2639.2,0.37891]
[1727203858544,1.36045803,2639.4,2639.3,0.3789]
[1727203858739,0.98155803,2639.4,2639.3,0.3789]
[1727203859143,0.98155803,2639.4,2639.3,3.0389]
[1727203859343,0.98155803,2639.5,2639.4,0.37889]
[1727203859948,0.98155803,2639.5,2639.4,4.16769]
[1727203862648,0.37885,2639.7,2639.5,0.37886]
[1727203862946,2.70297803,2640.0,2639.5,0.37886]
[1727203862947,2.70297803,2640.0,2639.5,1.51836]
[1727203863154,0.37882,2639.9,2639.7,0.37884]
[1727203863352,2.13476803,2640.0,2639.6,2.66]
[1727203863658,3.2078,2640.1,2639.9,0.37881]
[1727203863951,3.2078,2640.1,2640.0,0.7623]
[1727203864154,3.2078,2640.1,2640.0,3.4223]
[1727203864340,5.64328042,2640.2,2640.1,0.37879]
[1727203864542,4.18935803,2640.4,2640.0,3.4223]
[1727203864746,0.37877,2640.3,2640.0,3.80109]
[1727203865244,3.58655,2640.4,2640.1,0.37879]
[1727203865447,0.37876,2640.3,2640.1,0.37879]
[1727203866953,0.37876,2640.3,2640.0,3.4223]
[1727203866954,0.37876,2640.3,2640.0,3.80109]
[1727203867151,0.37876,2640.3,2640.1,0.37878]
[1727203867355,0.37876,2640.3,2640.0,3.80109]
[1727203867656,0.37876,2640.3,2640.1,0.37879]
[1727203867955,0.37876,2640.3,2640.1,0.37878]
[1727203868347,3.58655,2640.4,2640.2,0.37877]
[1727203868553,3.58655,2640.4,2640.1,0.37878]
[1727203868554,0.37876,2640.3,2640.1,0.37878]
[1727203869155,0.37876,2640.3,2640.2,0.37877]
[1727203869550,3.2078,2640.4,2640.0,3.4223]
[1727203869752,0.37879,2640.1,2640.0,0.3683]
[1727203869958,0.9469,2640.3,2640.0,0.3683]
[1727203869959,0.9469,2640.3,2640.0,0.7471]
[1727203870361,0.37879,2640.1,2640.0,0.3683]
[1727203870659,0.37879,2640.1,2640.0,0.7471]
[1727203870660,1.84843992,2640.1,2640.0,0.7471]
[1727203870855,1.84843992,2640.1,2640.0,0.3683]
[1727203871054,0.37879,2640.1,2640.0,0.3683]
[1727203871952,2.34609368,2640.1,2640.0,0.3683]
[1727203872149,2.72509368,2640.1,2640.0,0.3683]
[1727203872449,2.72509368,2640.1,2640.0,0.7471]
[1727203873950,2.72509368,2640.1,2640.0,0.3683]
[1727203874862,0.75779,2640.1,2640.0,0.3683]
[1727203875359,2.72013928,2640.1,2640.0,0.3683]
[1727203875663,0.75779,2640.1,2640.0,0.3683]
[1727203876186,2.10758,2640.1,2639.7,0.3685]
[1727203876356,2.10758,2640.1,2639.8,0.37883]
[1727203876357,0.37882,2639.9,2639.8,0.37883]
[1727203876557,2.34156985,2639.9,2639.8,0.37883]
[1727203876866,1.96274985,2639.9,2639.8,0.37883]
[1727203877359,2.34155985,2640.0,2639.9,0.37882]
[1727203877560,3.9985296,2640.1,2639.7,0.3685]
[1727203877762,3.9985296,2640.1,2639.9,0.37881]
[1727203877763,1.36060363,2640.0,2639.9,0.37881]
[1727203878163,0.98179363,2640.0,2639.9,0.37881]
[1727203878359,0.98179363,2640.1,2640.0,0.3788]
[1727203878559,0.98179363,2640.1,2640.0,3.4403]
[1727203878871,1.36058363,2640.2,2640.0,3.8128]
[1727203879063,0.37879,2640.1,2640.0,0.774]
[1727203879363,0.98179363,2640.1,2639.8,2.66]
[1727203879566,0.3788,2640.0,2639.9,0.3725]
[1727203880659,1.159,2640.0,2639.7,0.74734]
[1727203880969,0.37883,2639.9,2639.7,0.3685]
[1727203881262,0.37883,2639.9,2639.7,0.74734]
[1727203881468,1.159,2640.0,2639.7,0.3685]
[1727203881768,0.37882,2639.9,2639.7,0.74734]
[1727203887168,1.36061363,2639.9,2639.7,0.74734]
[1727203888762,1.36061363,2639.9,2639.6,0.3725]
[1727203888763,0.37884,2639.7,2639.6,0.3725]
[1727203889265,1.85153045,2639.7,2639.6,0.3725]
[1727203889465,0.37884,2639.7,2639.6,0.3725]
[1727203889774,1.85153045,2639.7,2639.6,0.3725]
[1727203892473,1.85153045,2639.7,2639.6,0.75136]
[1727203892669,0.37884,2639.7,2639.6,0.75136]
[1727203893762,2.8379696,2639.8,2639.6,0.75136]
[1727203893966,0.37884,2639.7,2639.6,0.75136]
[1727203894372,2.34872282,2639.7,2639.6,0.75136]
[1727203894560,0.37884,2639.8,2639.7,0.37884]
[1727203894761,0.37884,2639.8,2639.6,3.41135]
[1727203895069,2.34876032,2639.7,2639.6,3.41135]
[1727203895572,1.96992032,2639.7,2639.6,3.41135]
[1727203895874,1.96992032,2639.7,2639.6,3.41136]
[1727203896278,1.97013112,2639.8,2639.7,0.37884]
[1727203896473,1.97013112,2639.8,2639.7,6.82684]
[1727203896668,1.97013112,2640.0,2639.9,0.37882]
[1727203896868,1.52575,2640.4,2639.9,5.8678]
[1727203896869,1.97013112,2640.1,2639.9,5.8678]
[1727203897069,1.97013112,2640.1,2640.0,3.787]
[1727203900779,1.4773315,2640.1,2640.0,3.787]
[1727203903682,1.97013112,2640.2,2640.0,3.787]
[1727203904675,0.37879,2640.1,2640.0,3.4082]
[1727203905284,2.34891112,2640.2,2640.0,3.4082]
[1727203905779,2.34891112,2640.2,2640.0,3.787]
[1727203906675,1.97013112,2640.2,2639.8,0.3699]
[1727203906881,1.85611662,2639.9,2639.8,0.3699]
[1727203907087,0.37882,2639.9,2639.8,0.3699]
[1727203907781,0.37883,2639.8,2639.7,0.3754]
[1727203907984,2.84101842,2639.8,2639.7,0.3754]
[1727203908181,2.84101842,2639.8,2639.7,0.75424]
[1727203908577,2.84101842,2639.8,2639.7,0.3754]
[1727203908789,2.84101842,2639.8,2639.7,0.75424]
[1727203908983,2.84101842,2639.8,2639.7,0.3754]
[1727203909471,0.37883,2639.8,2639.7,0.3754]
[1727203909984,2.84146575,2639.8,2639.7,0.3754]
[1727203910580,0.37883,2639.8,2639.7,0.3754]
[1727203914384,2.84226823,2639.8,2639.7,0.3754]
[1727203914993,0.37883,2639.8,2639.7,0.3754]
[1727203915285,2.84218813,2639.8,2639.7,0.3754]
[1727203915484,0.37883,2639.8,2639.7,0.3754]
[1727203915691,2.95095552,2640.1,2639.7,3.0354]
[1727203915992,1.97088403,2640.0,2639.9,3.0388]
[1727203917693,2.34968403,2640.0,2639.8,0.37883]
[1727203917898,2.71988403,2640.0,2639.8,0.37883]
[1727203918290,0.37883,2639.8,2639.7,3.41424]
[1727203918584,1.8575254,2639.8,2639.7,3.41424]
[1727203918989,1.8575254,2639.8,2639.7,0.3754]
[1727203919192,1.8575254,2639.8,2639.7,0.75424]
[1727203919389,0.37883,2639.8,2639.7,0.3754]
[1727203919589,2.33468403,2639.9,2639.6,3.97086]
[1727203919590,0.37884,2639.7,2639.6,3.97086]
[1727203919790,1.85780318,2639.7,2639.6,3.97086]
[1727203920092,1.85780318,2639.7,2639.6,0.76306]
[1727203922790,1.97088403,2639.7,2639.6,0.76306]
[1727203923100,1.97088403,2639.7,2639.6,0.76305]
[1727203923101,1.97166561,2639.7,2639.6,0.76305]
[1727203924297,2.35050561,2639.7,2639.6,0.3842]
[1727203924493,2.35050561,2639.7,2639.6,0.76306]
[1727203925193,1.97166561,2639.7,2639.6,0.76306]
[1727203929011,1.97101388,2639.8,2639.7,0.94712]
[1727203929212,1.97101388,2639.9,2639.8,0.37883]
[1727203929399,1.97101388,2639.9,2639.8,3.58663]
[1727203930107,1.97101388,2639.9,2639.8,3.2078]
[1727203930296,0.37882,2639.9,2639.8,3.2078]
[1727203930498,0.37884,2639.7,2639.6,0.3842]
[1727203930698,0.37884,2639.7,2639.5,3.4365]
[1727203930699,0.37886,2639.6,2639.5,0.7765]
[1727203930898,0.37886,2639.6,2639.5,1.76867625]
[1727203931104,1.85642233,2639.6,2639.5,0.7765]
[1727203931312,1.85642233,2639.6,2639.5,1.15537]
[1727203932710,1.47756233,2639.6,2639.5,1.15537]
[1727203933516,1.85642233,2639.6,2639.5,0.7765]
[1727203935916,1.85642233,2639.6,2639.5,1.15537]
[1727203936506,1.85642233,2639.6,2639.5,0.7765]
[1727203937511,1.85642233,2639.6,2639.5,1.15537]
[1727203938407,1.85642233,2639.6,2639.5,0.7765]
[1727203938607,0.94716,2639.6,2639.3,1.37157625]
[1727203938906,0.3789,2639.3,2639.2,1.38017625]
[1727203939102,0.3789,2639.3,2639.2,0.76692]
[1727203939103,1.8570515,2639.3,2639.2,0.76692]
[1727203939309,2.2335515,2639.3,2639.2,0.76692]
[1727203940209,2.2335515,2639.3,2639.2,0.388]
[1727203943218,0.37892,2639.2,2639.1,3.0296]
[1727203943517,0.37892,2639.2,2639.1,3.43223]
[1727203943518,0.984465,2639.2,2639.1,3.43223]
[1727203944210,1.360965,2639.3,2639.2,0.37892]
[1727203944405,0.3765,2639.3,2639.2,0.37892]
[1727203944816,0.3765,2639.3,2639.1,3.43222]
[1727203945016,0.98425031,2639.2,2639.1,3.43222]
[1727203945719,0.98425031,2639.2,2639.1,3.0533]
[1727203945916,1.4781515,2639.2,2639.1,3.0533]
[1727203946115,1.4781515,2639.2,2639.1,3.43223]
[1727203946719,1.4781515,2639.3,2639.2,0.37892]
[1727203947225,0.37889,2639.4,2639.2,0.37892]
[1727203947424,1.47601707,2639.3,2639.2,0.37892]
[1727203947720,2.3489969,2639.4,2639.1,3.43222]
[1727203947917,1.47568365,2639.2,2639.1,3.43222]
[1727203949215,1.85459365,2639.3,2639.1,3.43222]
[1727203949421,1.47568365,2639.2,2639.1,3.43222]
[1727203950023,1.47568365,2639.2,2639.1,3.0533]
[1727203950222,1.84148365,2639.2,2639.1,3.0533]
[1727203950419,1.84148365,2639.2,2639.1,3.43223]
[1727203950719,1.47568365,2639.2,2639.1,3.43223]
[1727203952816,1.47568365,2639.3,2639.2,0.37892]
[1727203953122,0.98362343,2639.3,2639.2,0.37892]
[1727203953425,0.98362343,2639.3,2639.1,4.42439625]
[1727203953426,1.36253343,2639.3,2639.1,4.42439625]
[1727203953616,1.36253343,2639.3,2639.1,3.43222]
[1727203955815,0.37892,2639.2,2639.1,3.0533]
[1727203956028,0.98362343,2639.3,2639.1,3.0533]
[1727203956029,1.36253343,2639.3,2639.1,3.0533]
[1727203956321,0.98362343,2639.2,2639.1,2.00223]
[1727203956516,1.36253343,2639.3,2639.1,2.00223]
[1727203956712,1.36253343,2639.3,2639.1,2.00222]
[1727203957219,0.98362343,2639.3,2639.2,1.60892]
[1727203957420,1.36252343,2639.3,2639.2,1.60892]
[1727203957926,1.36252343,2639.3,2639.2,1.23]
[1727203958629,1.36252343,2639.3,2639.2,1.60892]
[1727203959326,1.36252343,2639.3,2639.2,1.23]
[1727203959522,0.98362343,2639.3,2639.2,1.60892]
[1727203961121,1.47568365,2639.3,2639.2,1.60892]
[1727203961726,0.3789,2639.4,2639.2,1.60892]
[1727203961727,1.47568365,2639.4,2639.3,0.3789]
[1727203962026,1.47568365,2639.5,2639.4,0.37889]
[1727203962230,1.47568365,2639.5,2639.4,1.60889]
[1727203962832,5.5567769,2639.6,2639.5,0.37887]
[1727203963430,5.5567769,2639.6,2639.4,1.60888]
[1727203963725,5.5567769,2639.6,2639.5,0.37887]
[1727203963926,1.9701069,2639.6,2639.5,0.37887]
[1727203964126,0.37886,2639.7,2639.5,0.37887]
[1727203964127,2.3489669,2639.7,2639.5,0.75747]
[1727203964323,2.3489669,2639.7,2639.5,0.3786]
[1727203964525,1.9701069,2639.7,2639.6,1.60886]
[1727203964729,1.47728259,2639.7,2639.6,1.23]
[1727203964925,1.9701069,2639.8,2639.7,0.37883]
[1727203965231,1.9701069,2639.8,2639.7,1.60883]
[1727203965633,1.9701069,2639.9,2639.8,0.37883]
[1727203965924,3.21540385,2640.1,2639.9,0.37882]
[1727203965925,1.9701069,2640.0,2639.9,0.37882]
[1727203966118,1.9701069,2640.1,2640.0,0.3788]
[1727203966323,2.84218385,2640.2,2640.0,0.37879]
[1727203966522,0.37878,2640.2,2640.1,1.23]
[1727203966928,0.37878,2640.2,2640.0,1.60879]
[1727203967134,2.34844285,2640.1,2640.0,1.23]
[1727203967325,1.96952599,2640.1,2640.0,1.6088]
[1727203968235,0.37878,2640.2,2640.0,1.6088]
[1727203968236,2.34830599,2640.2,2640.0,1.6088]
[1727203968437,2.34830599,2640.2,2640.0,0.3788]
[1727203969333,1.47710841,2640.1,2640.0,0.3788]
[1727203972122,1.85588841,2640.2,2640.0,0.3788]
[1727203972628,1.47710841,2640.1,2640.0,0.3788]
[1727203972828,1.47710841,2640.1,2640.0,0.7642]
[1727203973031,1.47710841,2640.1,2639.9,0.3786]
[1727203973236,0.37886,2639.6,2639.5,3.2078]
[1727203973628,1.36376475,2639.6,2639.5,3.2078]
[1727203974138,1.36376475,2639.6,2639.5,3.58667]
[1727203974439,1.36376475,2639.6,2639.5,3.2078]
[1727203974729,0.98490475,2639.6,2639.5,0.37887]
[1727203975040,0.98487789,2639.6,2639.5,0.37887]
[1727203975238,2.24260713,2639.7,2639.6,0.37886]
[1727203975435,1.86375713,2639.7,2639.5,0.37887]
[1727203975631,0.98494126,2639.6,2639.5,0.37887]
[1727203975934,2.24260713,2639.7,2639.5,0.37886]
[1727203976136,2.73477599,2639.7,2639.5,0.37886]
[1727203976334,2.34838599,2639.6,2639.5,0.37886]
[1727203976933,0.37886,2639.6,2639.5,0.37886]
[1727203977232,2.34838599,2639.6,2639.5,0.37886]
[1727203977429,1.96952599,2639.6,2639.5,0.37886]
[1727203978429,2.34838599,2639.6,2639.5,0.37886]
[1727203978634,2.34838599,2639.6,2639.4,1.15998]
[1727203979034,0.37887,2639.5,2639.4,1.15998]
[1727203979236,0.37891,2639.3,2638.9,1.049]
[1727203979438,1.47769904,2639.2,2639.1,0.37892]
[1727203979636,2.34843599,2639.3,2639.1,0.37892]
[1727203979832,1.47829883,2639.2,2639.1,0.37892]
[1727203980038,1.47842358,2639.2,2639.1,0.37892]
[1727203980440,2.73193599,2639.3,2639.2,0.37892]
[1727203980739,2.73193599,2639.3,2639.1,0.37892]
[1727203980740,0.37892,2639.2,2639.1,0.37892]
[1727203980938,0.37893,2639.1,2639.0,1.52294]
[1727203981141,1.47833329,2639.1,2639.0,1.52294]
[1727203981536,1.85726329,2639.1,2639.0,0.3808]
[1727203981730,0.37894,2639.1,2639.0,0.37894]
[1727203981932,0.37895,2639.0,2638.9,3.58675]
[1727203982841,0.37895,2639.0,2638.9,3.2078]
[1727203983039,1.36411454,2639.0,2638.9,3.2078]
[1727203983238,1.36411454,2639.0,2638.9,3.58676]
[1727203983537,0.98516454,2639.0,2638.7,0.7485]
[1727203983739,0.37899,2638.7,2638.6,0.3926]
[1727203984132,1.36415454,2638.7,2638.6,0.3926]
[1727203984334,0.37899,2638.7,2638.6,0.3926]
[1727203984836,0.37902,2638.5,2638.4,0.37902]
[1727203985032,0.98516454,2638.6,2638.3,1.14135]
[1727203985232,0.37903,2638.4,2638.3,1.14134]
[1727203986740,0.37902,2638.5,2638.4,0.37902]
[1727203986941,0.37902,2638.5,2638.3,0.7623]
[1727203986942,0.37902,2638.5,2638.3,1.14133]
[1727203987141,0.98516454,2638.6,2638.5,0.37902]
[1727203987341,0.37901,2638.6,2638.4,3.03903]
[1727203987736,0.37901,2638.6,2638.4,0.37903]
[1727203987941,0.37902,2638.5,2638.3,1.14134]
[1727203989844,0.37902,2638.5,2638.4,0.37903]
[1727203990046,1.93262454,2638.8,2638.4,2.66]
[1727203990047,0.98516454,2638.8,2638.4,2.66]
[1727203990240,2.12493454,2638.9,2638.7,0.37899]
[1727203990642,0.98516454,2638.9,2638.8,3.03897]
[1727203990947,0.3873,2639.2,2638.8,3.03897]
[1727203990948,1.36412454,2639.0,2638.8,0.3761]
[1727203991143,0.37896,2638.9,2638.8,0.3761]
[1727203991451,0.37897,2638.8,2638.7,3.6077]
[1727203992252,0.98516454,2639.1,2638.7,3.6077]
[1727203992461,0.37897,2638.9,2638.7,3.98668]
[1727203993150,0.37896,2639.0,2638.8,0.37897]
[1727203993346,4.75482,2639.2,2638.8,2.66]
[1727203993347,0.98516454,2639.2,2638.8,2.66]
[1727203993546,1.36406454,2639.4,2639.0,5.8678]
[1727203993742,1.36406454,2639.4,2639.2,0.37892]
[1727203993941,2.12424454,2639.5,2639.2,0.37892]
[1727203994148,1.35106454,2639.5,2639.3,3.0389]
[1727203994351,0.3659,2639.5,2639.3,3.0389]
[1727203994549,1.72994454,2639.5,2639.3,3.0389]
[1727203994851,1.72994454,2639.5,2639.3,2.66]
[1727203994852,0.74478,2639.5,2639.3,2.66]
[1727203995347,0.74478,2639.5,2639.3,3.0389]
[1727203995753,0.74478,2639.5,2639.3,2.66]
[1727203996452,0.74478,2639.5,2639.3,3.0389]
[1727203997946,0.37889,2639.4,2639.2,0.77661]
[1727203998147,1.36405454,2639.4,2639.2,0.77661]
[1727203998551,0.98516454,2639.4,2639.2,0.3977]
[1727203998751,1.36405454,2639.4,2639.2,0.7766]